bitfinex-derivatives/quotes_SOLF0:USTF0_20240923
["timestamp","ask_amount","ask_price","bid_price","bid_amount"]
[1727098362512,3.4968,143.01,142.94,2.8654]
[1727098363012,16.68991028,143.04,142.95,11.75]
[1727098363212,3.4966,143.02,143.0,3.4968]
[1727098363609,3.4966,143.02,142.95,11.75]
[1727098363916,3.4966,143.02,142.99,3.4971]
[1727098364418,11.75,143.06,142.97,11.75]
[1727098364905,3.4964,143.03,142.97,11.75]
[1727098365111,11.75,143.06,142.97,11.75]
[1727098365516,3.4965,143.03,143.0,3.4968]
[1727098365811,11.75,143.06,142.97,11.75]
[1727098366112,11.75,143.06,143.01,3.4966]
[1727098366317,11.75,143.04,142.95,11.75]
[1727098366509,15.31129075,143.04,142.95,11.75]
[1727098367714,11.75,143.04,142.95,11.75]
[1727098368214,3.4963,143.03,143.0,3.4968]
[1727098368512,3.4963,143.03,142.95,11.75]
[1727098369111,3.4966,143.02,142.95,11.75]
[1727098369312,3.43709416,143.04,142.95,11.75]
[1727098369515,11.75,143.05,142.95,11.75]
[1727098369713,11.75,143.05,142.94,2.8654]
[1727098369714,1.3966,143.08,143.03,3.4962]
[1727098369913,1.3966,143.08,142.97,11.75]
[1727098369914,11.75,143.06,142.97,11.75]
[1727098370314,11.75,143.06,142.94,9.8621]
[1727098370315,11.75,143.05,142.95,11.75]
[1727098370613,11.75,143.03,142.94,21.6121]
[1727098370815,3.497,143.0,142.94,2.8654]
[1727098371016,1.4515,143.02,142.94,2.8654]
[1727098371214,11.75,143.0,142.94,2.8654]
[1727098371619,3.4973,142.99,142.94,2.8654]
[1727098372318,15.2475,142.98,142.9,99.03932858]
[1727098372516,11.75,142.98,142.9,99.03932858]
[1727098372716,11.75,142.98,142.96,3.4979]
[1727098373123,11.75,143.0,142.92,11.75]
[1727098373317,11.75,143.0,142.97,3.4976]
[1727098373512,18.77595933,143.0,142.97,3.4976]
[1727098374019,3.4973,142.99,142.97,3.4976]
[1727098374722,18.77585933,143.0,142.97,3.4976]
[1727098374923,3.4971,143.0,142.98,3.4974]
[1727098375120,13.2015,143.02,142.98,3.4974]
[1727098375423,6.93168229,143.01,142.98,3.4974]
[1727098376622,3.497,143.0,142.98,3.4974]
[1727098377026,13.2015,143.02,142.99,3.4972]
[1727098377219,3.4969,143.01,142.94,11.75]
[1727098377616,3.4969,143.01,142.98,3.4974]
[1727098377927,3.497,143.0,142.98,3.4974]
[1727098378228,3.4972,142.99,142.97,3.4976]
[1727098378421,16.67571205,143.02,142.92,11.75]
[1727098378627,11.75,143.01,142.92,11.75]
[1727098378822,3.4976,142.98,142.95,3.498]
[1727098379028,11.75,143.01,142.92,11.75]
[1727098379329,3.4976,142.98,142.92,11.75]
[1727098380527,3.4976,142.98,142.95,3.498]
[1727098381026,3.4976,142.98,142.96,3.4979]
[1727098381321,4.92571205,143.02,142.9,92.04062858]
[1727098381322,3.4979,142.97,142.9,92.04062858]
[1727098381518,3.4979,142.97,142.94,3.4983]
[1727098381721,11.75,142.99,142.89,16.0166]
[1727098381926,3.4979,142.97,142.89,14.5668]
[1727098382130,4.92571205,143.02,142.91,11.75]
[1727098382319,11.75,143.01,142.91,11.75]
[1727098382514,3.4975,142.98,142.95,3.498]
[1727098382729,4.92571205,143.02,142.95,11.75]
[1727098383121,3.4969,143.01,142.97,3.4977]
[1727098383325,3.4969,143.01,142.95,11.75]
[1727098383625,16.6224,143.04,143.0,3.4967]
[1727098383828,8.38251099,143.04,142.96,11.75]
[1727098384122,1.4194,143.07,143.0,11.75]
[1727098384326,3.4956,143.06,143.0,11.75]
[1727098384522,2.8222,143.09,142.98,11.75]
[1727098384728,11.75,143.08,142.98,11.75]
[1727098385528,3.4959,143.05,142.98,11.75]
[1727098385931,2.8222,143.09,142.95,1.4032]
[1727098385932,3.4956,143.06,143.03,3.4961]
[1727098386230,14.5722,143.09,143.03,3.4961]
[1727098386431,2.8222,143.09,143.02,11.75]
[1727098386732,13.1963,143.11,143.02,11.75]
[1727098387231,3.4952,143.08,143.04,3.4959]
[1727098387822,3.4952,143.08,143.0,11.75]
[1727098387823,3.4952,143.08,143.05,3.4957]
[1727098388023,3.4952,143.08,143.0,11.75]
[1727098388531,3.4952,143.08,143.04,3.4958]
[1727098388927,3.4952,143.08,143.05,3.4957]
[1727098389327,15.2448,143.09,143.02,11.75]
[1727098389528,3.4948,143.09,143.06,3.4954]
[1727098390929,3.4944,143.11,143.04,11.75]
[1727098391124,27.20908883,143.16,143.05,11.75]
[1727098391323,27.20908883,143.16,143.07,11.75]
[1727098391732,11.75,143.14,143.05,11.75]
[1727098391929,11.75,143.14,143.04,11.75]
[1727098392135,3.4941,143.12,143.09,3.4946]
[1727098392334,11.75,143.14,143.06,11.75]
[1727098392739,3.4942,143.12,143.06,11.75]
[1727098393232,11.75,143.14,143.09,3.4946]
[1727098393439,11.75,143.12,143.04,11.75]
[1727098393637,15.2441,143.12,143.09,3.4948]
[1727098394132,1.4506,143.16,143.04,11.75]
[1727098394345,3.4941,143.12,143.04,11.75]
[1727098395336,3.4939,143.13,143.11,3.4943]
[1727098395537,11.75,143.16,143.08,11.75]
[1727098395740,35.21787837,143.3,143.1,11.75]
[1727098395741,15.16386677,143.2,143.1,11.75]
[1727098395940,1.4718,143.21,143.11,11.75]
[1727098395941,14.6546,143.21,143.11,11.75]
[1727098396146,13.1828,143.21,143.13,11.75]
[1727098396534,15.21516375,143.23,143.15,11.75]
[1727098396739,11.75,143.23,143.15,11.75]
[1727098397250,11.75,143.23,143.19,3.4923]
[1727098397637,11.75,143.23,143.18,3.4925]
[1727098398451,11.75,143.23,143.13,13.1368]
[1727098399042,11.75,143.23,143.18,3.4926]
[1727098399644,11.75,143.23,143.2,3.4919]
[1727098399838,11.75,143.25,143.15,11.75]
[1727098400037,3.491,143.25,143.17,11.75]
[1727098400443,11.75,143.25,143.17,11.75]
[1727098400642,3.4914,143.23,143.16,1.4533]
[1727098400850,11.75,143.25,143.16,1.4533]
[1727098401446,3.4914,143.23,143.2,3.492]
[1727098401649,11.75,143.25,143.16,1.4533]
[1727098401846,3.4912,143.24,143.2,3.4919]
[1727098402855,14.6153,143.27,143.16,1.4533]
[1727098403046,13.1828,143.27,143.18,11.75]
[1727098403253,13.1828,143.27,143.19,1.327]
[1727098404151,1.463,143.31,143.19,13.077]
[1727098404152,11.75,143.29,143.19,13.077]
[1727098404356,11.75,143.29,143.2,1.4566]
[1727098404753,3.4905,143.27,143.23,3.4912]
[1727098404948,11.75,143.27,143.23,3.4912]
[1727098405857,3.4907,143.26,143.23,3.4912]
[1727098406855,3.4907,143.26,143.2,1.4566]
[1727098406856,3.4912,143.24,143.21,3.4917]
[1727098407049,11.75,143.25,143.19,1.327]
[1727098407856,3.491,143.25,143.22,3.4915]
[1727098409549,3.4913,143.24,143.21,3.4918]
[1727098409749,11.75,143.25,143.19,1.327]
[1727098410152,3.4913,143.24,143.21,3.4917]
[1727098412157,3.4914,143.23,143.21,3.4917]
[1727098413261,3.4914,143.23,143.2,3.492]
[1727098413652,11.75,143.25,143.2,3.492]
[1727098414459,3.4915,143.23,143.2,3.492]
[1727098414861,3.4915,143.23,143.21,3.4918]
[1727098415864,3.4912,143.24,143.21,3.4918]
[1727098416661,3.491,143.25,143.22,3.4915]
[1727098417268,3.4913,143.24,143.21,3.4917]
[1727098418467,3.4913,143.24,143.19,1.327]
[1727098418773,3.4913,143.24,143.22,3.4916]
[1727098419178,3.4911,143.25,143.22,3.4916]
[1727098420171,15.2407,143.26,143.24,3.4911]
[1727098420872,3.4906,143.27,143.19,13.077]
[1727098421070,3.52434464,143.28,143.2,1.4481]
[1727098421569,2.8237,143.31,143.23,11.75]
[1727098422466,1.467,143.35,143.25,11.75]
[1727098422678,3.49587527,143.36,143.27,11.75]
[1727098422966,3.49587527,143.36,143.26,4.2101]
[1727098422967,2.8683,143.38,143.28,11.75]
[1727098423180,18.1062,143.38,143.3,11.75]
[1727098423370,1.467,143.41,143.32,11.75]
[1727098423669,83.82,143.47,143.28,11.75]
[1727098423670,3.4869,143.42,143.37,3.4879]
[1727098423867,11.75,143.45,143.36,11.75]
[1727098424061,11.75,143.45,143.38,11.75]
[1727098424260,11.75,143.48,143.38,11.75]
[1727098424465,11.75,143.48,143.4,11.75]
[1727098424666,2.8593,143.5,143.4,11.75]
[1727098424868,14.6093,143.5,143.4,11.75]
[1727098425063,11.75,143.47,143.39,1.3885]
[1727098425266,11.75,143.45,143.39,1.3885]
[1727098425675,2.8593,143.5,143.4,11.75]
[1727098425863,1.3804,143.53,143.42,11.75]
[1727098426172,11.75,143.52,143.44,11.75]
[1727098426368,15.2344,143.52,143.45,3.486]
[1727098426764,1.3804,143.53,143.44,11.75]
[1727098426969,11.75,143.55,143.45,11.75]
[1727098427369,11.75,143.56,143.47,11.75]
[1727098428367,11.75,143.56,143.47,13.0771]
[1727098428777,25.12626627,143.59,143.47,20.0771]
[1727098428967,3.4833,143.56,143.5,3.4848]
[1727098429170,25.12626627,143.59,143.5,3.4848]
[1727098429381,1.4305,143.63,143.52,18.75]
[1727098429583,18.75,143.64,143.52,18.75]
[1727098429973,18.75,143.64,143.56,3.4833]
[1727098430472,3.4821,143.61,143.55,3.4836]
[1727098431670,2.8901,143.67,143.58,3.4826]
[1727098431671,21.6401,143.67,143.58,3.4826]
[1727098431975,21.6401,143.67,143.56,18.75]
[1727098432578,20.1932,143.67,143.56,20.1119]
[1727098432770,1.4432,143.67,143.56,20.1119]
[1727098432971,3.4812,143.65,143.59,3.4824]
[1727098433169,18.75,143.69,143.56,20.1119]
[1727098433383,3.4816,143.64,143.58,3.4828]
[1727098433579,18.75,143.67,143.58,3.4828]
[1727098434176,3.4815,143.64,143.56,20.1119]
[1727098434376,18.75,143.67,143.56,20.1119]
[1727098435474,18.75,143.67,143.59,3.4825]
[1727098436078,3.4816,143.64,143.59,3.4825]
[1727098436285,2.9337,143.7,143.56,20.1119]
[1727098436479,18.75,143.69,143.56,20.1119]
[1727098436676,2.9337,143.7,143.56,20.1119]
[1727098436880,18.75,143.68,143.59,3.4826]
[1727098437073,3.4814,143.64,143.56,20.1119]
[1727098437276,18.75,143.68,143.59,3.4824]
[1727098437778,3.4816,143.64,143.59,3.4824]
[1727098437980,3.4816,143.64,143.6,3.4822]
[1727098438171,2.9337,143.7,143.56,20.1119]
[1727098438579,18.75,143.68,143.56,20.1119]
[1727098438783,3.4816,143.64,143.56,20.1119]
[1727098438984,2.9337,143.7,143.56,20.1119]
[1727098439182,18.75,143.69,143.59,18.75]
[1727098439485,2.9337,143.7,143.57,1.4467]
[1727098439677,18.75,143.68,143.57,1.4467]
[1727098439874,3.4817,143.63,143.57,1.4467]
[1727098440078,3.4817,143.63,143.59,3.4825]
[1727098440275,18.75,143.68,143.59,3.4825]
[1727098440475,21.6837,143.7,143.57,1.4467]
[1727098440779,18.75,143.68,143.57,1.4467]
[1727098441181,18.75,143.68,143.6,3.4822]
[1727098441388,18.75,143.68,143.57,1.4467]
[1727098441584,18.75,143.68,143.59,3.4824]
[1727098441886,18.75,143.68,143.57,1.4467]
[1727098442278,2.9337,143.7,143.55,1.3522]
[1727098442480,3.4828,143.59,143.55,1.3522]
[1727098442687,3.51257811,143.6,143.52,2.8714]
[1727098442982,3.4829,143.58,143.52,2.8714]
[1727098443185,22.27755638,143.6,143.51,79.94504811]
[1727098443589,18.75,143.58,143.48,1.364]
[1727098444091,22.1890801,143.58,143.47,83.62]
[1727098444290,3.4390801,143.58,143.47,83.62]
[1727098444496,3.4835,143.56,143.5,3.4848]
[1727098444791,3.40279371,143.59,143.48,18.75]
[1727098445085,18.75,143.6,143.48,18.75]
[1727098445483,18.75,143.57,143.46,22.9295]
[1727098445685,3.55719683,143.6,143.46,4.1795]
[1727098445686,18.75,143.55,143.46,4.1795]
[1727098445891,18.75,143.57,143.46,4.1795]
[1727098446391,18.75,143.57,143.44,18.75]
[1727098446392,18.75,143.55,143.44,18.75]
[1727098446595,3.4844,143.52,143.47,3.4855]
[1727098446893,2.752,143.54,143.47,3.4855]
[1727098447086,3.4843,143.52,143.44,18.75]
[1727098447287,2.752,143.54,143.44,18.75]
[1727098447992,2.752,143.54,143.42,18.75]
[1727098448189,18.75,143.53,143.4,4.1239]
[1727098448385,3.4848,143.5,143.41,18.75]
[1727098448585,2.752,143.54,143.44,18.75]
[1727098449282,2.752,143.54,143.42,18.75]
[1727098449487,18.75,143.53,143.42,18.75]
[1727098449794,3.485,143.5,143.46,3.4856]
[1727098450392,18.75,143.53,143.45,3.4859]
[1727098450393,3.4851,143.49,143.45,3.4859]
[1727098450994,3.4856,143.47,143.43,3.4864]
[1727098451190,18.75,143.51,143.4,4.1239]
[1727098451386,20.1761,143.53,143.41,18.75]
[1727098451594,3.4853,143.49,143.45,3.4859]
[1727098451789,20.1761,143.53,143.4,4.1239]
[1727098451994,18.75,143.5,143.4,4.1239]
[1727098452198,18.75,143.5,143.4,2.7079]
[1727098452593,3.4863,143.44,143.41,3.4869]
[1727098453001,3.5109175,143.47,143.4,1.327]
[1727098453193,18.75,143.5,143.4,4.814]
[1727098453194,3.4864,143.44,143.4,4.814]
[1727098453399,3.47186081,143.47,143.4,3.487]
[1727098453695,3.47186081,143.47,143.36,21.5372]
[1727098453901,18.75,143.5,143.38,18.75]
[1727098454700,3.4852,143.49,143.45,3.4859]
[1727098454901,18.75,143.52,143.4,18.75]
[1727098455199,3.4852,143.49,143.4,18.75]
[1727098455898,3.4849,143.5,143.38,18.75]
[1727098456104,3.4849,143.5,143.43,18.75]
[1727098456298,3.4846,143.51,143.43,18.75]
[1727098457301,3.4846,143.51,143.38,18.75]
[1727098457302,2.752,143.54,143.45,18.75]
[1727098457493,2.752,143.54,143.5,3.4847]
[1727098458005,3.42510026,143.57,143.46,2.698]
[1727098458294,3.4842,143.53,143.46,2.698]
[1727098458497,23.71244624,143.58,143.46,2.698]
[1727098459200,23.71244624,143.58,143.51,3.4845]
[1727098459598,23.71244624,143.58,143.46,2.698]
[1727098459599,23.71244624,143.58,143.49,3.4849]
[1727098459795,23.71244624,143.58,143.46,2.698]
[1727098459996,3.4838,143.55,143.47,18.75]
[1727098460193,1.431,143.58,143.47,18.75]
[1727098460501,3.484,143.54,143.47,18.75]
[1727098460700,18.75,143.57,143.5,3.4848]
[1727098460898,18.75,143.57,143.46,2.698]
[1727098461908,3.4839,143.54,143.5,3.4846]
[1727098462303,1.431,143.58,143.5,3.4846]
[1727098462605,3.4843,143.53,143.5,3.4846]
[1727098463403,3.4843,143.53,143.51,3.4845]
[1727098463905,3.4843,143.53,143.5,3.4847]
[1727098464601,20.181,143.58,143.46,2.698]
[1727098464804,20.181,143.58,143.43,1.3539]
[1727098464805,18.75,143.53,143.43,1.3539]
[1727098465204,3.4852,143.49,143.46,3.4858]
[1727098465902,18.75,143.55,143.43,1.3539]
[1727098466102,8.3968,143.58,143.43,1.3539]
[1727098466296,18.75,143.54,143.43,1.3539]
[1727098466496,18.75,143.54,143.48,3.4853]
[1727098466497,3.4846,143.51,143.48,3.4853]
[1727098466801,18.75,143.54,143.48,3.4853]
[1727098467708,18.75,143.54,143.49,3.485]
[1727098468007,18.75,143.54,143.43,1.3539]
[1727098468008,18.75,143.56,143.45,18.75]
[1727098468408,3.4839,143.54,143.45,18.75]
[1727098468608,1.431,143.58,143.47,18.75]
[1727098469001,3.4832,143.57,143.49,18.75]
[1727098469202,3.4832,143.57,143.5,1.4235]
[1727098469703,3.4832,143.57,143.54,3.4836]
[1727098469901,4.9139,143.58,143.5,1.4235]
[1727098470099,3.4829,143.58,143.5,2.8008]
[1727098470299,1.3457,143.59,143.56,3.4832]
[1727098470502,4.92235082,143.62,143.51,18.75]
[1727098471314,1.3545,143.62,143.51,18.75]
[1727098471511,3.4819,143.62,143.54,18.75]
[1727098471704,3.46445581,143.63,143.54,18.75]
[1727098471905,18.75,143.63,143.51,18.75]
[1727098472416,3.47735038,143.63,143.5,2.8008]
[1727098472610,3.4832,143.57,143.5,2.8008]
[1727098473010,18.75,143.57,143.48,1.4253]
[1727098473306,18.75,143.55,143.44,21.5069]
[1727098473497,18.75,143.55,143.48,3.4851]
[1727098473703,18.75,143.55,143.44,22.9762]
[1727098473905,18.75,143.55,143.49,3.485]
[1727098474104,18.75,143.55,143.44,4.2262]
[1727098474307,18.75,143.53,143.44,4.2262]
[1727098474501,18.75,143.53,143.45,3.486]
[1727098474707,18.75,143.53,143.44,1.3336]
[1727098475717,3.4851,143.49,143.44,1.3336]
[1727098476012,18.75,143.53,143.44,1.3336]
[1727098476211,18.75,143.53,143.46,3.4856]
[1727098476609,4.1275,143.58,143.44,1.3336]
[1727098476610,18.75,143.55,143.44,1.3336]
[1727098477003,3.4847,143.51,143.44,1.3336]
[1727098477212,18.75,143.55,143.44,1.3336]
[1727098477916,18.75,143.55,143.45,18.75]
[1727098478304,18.75,143.55,143.48,3.4853]
[1727098478615,3.4845,143.52,143.48,3.4853]
[1727098478820,18.75,143.55,143.47,3.4855]
[1727098479011,18.75,143.55,143.44,1.3336]
[1727098479317,18.75,143.55,143.47,3.4853]
[1727098479516,3.4847,143.51,143.47,3.4853]
[1727098479711,3.4847,143.51,143.44,1.3336]
[1727098480608,18.75,143.55,143.44,1.3336]
[1727098480912,18.75,143.53,143.44,1.3336]
[1727098481113,18.75,143.53,143.46,3.4857]
[1727098481309,3.4851,143.49,143.46,3.4857]
[1727098481707,3.4853,143.49,143.45,3.4859]
[1727098481904,3.4853,143.49,143.41,2.8531]
[1727098482413,18.75,143.5,143.41,2.8531]
[1727098482612,21.5956,143.5,143.41,2.8531]
[1727098482808,23.0241,143.5,143.41,2.8531]
[1727098483204,23.0241,143.5,143.41,1.4693]
[1727098483517,3.4857,143.47,143.41,1.4693]
[1727098484017,18.75,143.48,143.38,1.4413]
[1727098484612,4.2741,143.5,143.37,1.392]
[1727098484813,18.75,143.46,143.37,1.392]
[1727098485315,3.4865,143.44,143.37,1.392]
[1727098485513,4.2741,143.5,143.37,1.392]
[1727098485514,18.75,143.48,143.37,1.392]
[1727098485816,4.2741,143.5,143.37,20.142]
[1727098486221,3.4857,143.47,143.44,3.4862]
[1727098486613,18.75,143.48,143.37,20.142]
[1727098487224,3.4856,143.47,143.44,3.4861]
[1727098487413,4.2741,143.5,143.4,18.75]
[1727098487722,4.2741,143.5,143.37,20.142]
[1727098488517,3.4857,143.47,143.44,3.4861]
[1727098489211,3.4852,143.49,143.46,3.4856]
[1727098490014,4.2741,143.5,143.47,3.4854]
[1727098490417,4.2741,143.5,143.4,18.75]
[1727098491016,4.2741,143.5,143.48,3.4852]
[1727098491421,4.2741,143.5,143.4,18.75]
[1727098491721,7.7591,143.5,143.47,3.4854]
[1727098492120,2.8456,143.5,143.48,3.4852]
[1727098492426,2.8456,143.5,143.4,18.75]
[1727098493018,18.75,143.53,143.42,18.75]
[1727098493216,3.485,143.5,143.47,3.4854]
[1727098493416,3.485,143.5,143.42,18.75]
[1727098493718,3.485,143.5,143.4,18.75]
[1727098493919,3.485,143.5,143.47,3.4853]
[1727098494318,22.22998818,143.51,143.45,3.4859]
[1727098494517,18.75,143.51,143.45,3.4859]
[1727098494918,22.2352181,143.51,143.4,18.75]
[1727098495521,3.4854,143.48,143.45,3.4858]
[1727098495719,18.75,143.49,143.37,27.1179]
[1727098495920,3.4859,143.46,143.43,3.4863]
[1727098496121,2.7661,143.48,143.37,27.1179]
[1727098496520,6.2516,143.48,143.37,27.1179]
[1727098496723,2.7661,143.48,143.37,27.1179]
[1727098497026,6.2515,143.48,143.45,3.4858]
[1727098498218,6.2515,143.48,143.46,3.4857]
[1727098498423,3.4854,143.48,143.46,3.4857]
[1727098498723,1.433,143.5,143.46,3.4857]
[1727098499123,1.433,143.5,143.37,20.142]
[1727098499328,18.75,143.48,143.37,20.142]
[1727098499526,18.75,143.48,143.42,3.4866]
[1727098499728,18.75,143.48,143.37,1.392]
[1727098500230,18.75,143.48,143.37,20.142]
[1727098500431,20.183,143.5,143.37,20.142]
[1727098500733,3.4856,143.47,143.39,18.75]
[1727098500941,20.183,143.5,143.37,20.142]
[1727098501418,1.433,143.5,143.36,1.4572]
[1727098501623,1.433,143.5,143.31,80.05414894]
[1727098501624,18.75,143.43,143.32,1.3298]
[1727098501929,18.75,143.46,143.32,1.3298]
[1727098501930,18.75,143.41,143.32,1.3298]
[1727098502131,22.17423381,143.41,143.32,1.3298]
[1727098502331,18.75,143.38,143.31,80.05414894]
[1727098502518,4.81533381,143.41,143.25,4.1888]
[1727098502721,4.81533381,143.41,143.23,225.0]
[1727098502722,18.75,143.35,143.23,3.48249044]
[1727098502924,18.75,143.32,143.23,3.48249044]
[1727098503425,18.75,143.27,143.23,3.48249044]
[1727098503620,18.75,143.32,143.18,2.772]
[1727098503621,1.3911,143.31,143.18,2.772]
[1727098503830,18.75,143.26,143.18,2.772]
[1727098504130,18.75,143.29,143.18,2.772]
[1727098504428,1.3911,143.31,143.18,2.772]
[1727098504722,18.75,143.26,143.18,1.3303]
[1727098505321,18.75,143.28,143.18,1.3303]
[1727098505729,18.75,143.28,143.15,1.4452]
[1727098505730,18.75,143.26,143.2,3.492]
[1727098505927,18.75,143.28,143.15,2.8897]
[1727098506231,3.4899,143.29,143.24,3.4911]
[1727098506429,3.4899,143.29,143.19,18.75]
[1727098507019,18.75,143.28,143.16,18.75]
[1727098507331,18.75,143.3,143.15,2.8897]
[1727098507332,18.75,143.25,143.15,1.4445]
[1727098507524,18.75,143.25,143.19,3.4923]
[1727098508019,3.4923,143.2,143.12,1.3754]
[1727098508220,18.75,143.21,143.12,1.3754]
[1727098508730,22.2419,143.21,143.12,1.3754]
[1727098509228,3.4921,143.2,143.12,1.3754]
[1727098509430,18.75,143.21,143.11,1.4168]
[1727098509825,2.8458,143.24,143.11,20.1668]
[1727098510020,2.8458,143.24,143.14,18.75]
[1727098510227,2.8458,143.24,143.2,3.4919]
[1727098510423,2.8458,143.24,143.14,18.75]
[1727098510825,18.75,143.27,143.16,18.75]
[1727098511027,2.9343,143.29,143.16,18.75]
[1727098511433,3.4906,143.26,143.22,3.4916]
[1727098511833,18.75,143.28,143.16,18.75]
[1727098512131,3.4904,143.27,143.16,18.75]
[1727098512334,2.9343,143.29,143.12,1.3754]
[1727098512335,18.75,143.26,143.14,18.75]
[1727098512632,3.4912,143.24,143.14,18.75]
[1727098512826,18.75,143.26,143.14,18.75]
[1727098513431,2.9343,143.29,143.16,18.75]
[1727098513640,3.4902,143.28,143.18,18.75]
[1727098513932,2.9343,143.29,143.18,18.75]
[1727098514134,6.4244,143.29,143.18,18.75]
[1727098514336,2.9343,143.29,143.18,18.75]
[1727098514930,3.4903,143.28,143.18,18.75]
[1727098515137,2.9343,143.29,143.17,1.4397]
[1727098515324,18.75,143.27,143.17,1.4397]
[1727098515529,2.9343,143.29,143.17,1.4397]
[1727098515832,2.9343,143.29,143.18,18.75]
[1727098516229,2.9343,143.29,143.23,3.4911]
[1727098516430,2.9343,143.29,143.18,18.75]
[1727098516735,6.4243,143.29,143.25,3.4909]
[1727098517030,6.4243,143.29,143.18,18.75]
[1727098517031,18.75,143.32,143.22,18.75]
[1727098517229,1.3797,143.34,143.23,1.384]
[1727098517433,1.3797,143.34,143.24,1.455]
[1727098517635,20.1297,143.34,143.24,1.455]
[1727098517832,22.2397,143.31,143.26,3.4904]
[1727098518134,22.2397,143.31,143.23,1.384]
[1727098518135,18.75,143.31,143.23,1.384]
[1727098518334,18.75,143.31,143.2,1.4532]
[1727098518636,3.4901,143.28,143.24,3.4909]
[1727098519044,3.4901,143.28,143.25,3.4908]
[1727098519333,18.75,143.29,143.2,1.4532]
[1727098519542,18.75,143.29,143.24,3.4909]
[1727098519737,18.75,143.29,143.2,1.4532]
[1727098520133,3.4903,143.28,143.24,3.491]
[1727098520648,3.4904,143.27,143.24,3.491]
[1727098521131,18.75,143.29,143.25,3.4908]
[1727098521440,1.3619,143.3,143.2,1.4532]
[1727098522031,3.4902,143.28,143.25,3.4908]
[1727098522642,3.49,143.29,143.26,3.4905]
[1727098522834,1.3619,143.3,143.2,1.4532]
[1727098523441,1.3619,143.3,143.28,3.4901]
[1727098523639,18.75,143.31,143.2,1.4532]
[1727098523941,4.8685,143.34,143.31,3.4893]
[1727098524237,1.3797,143.34,143.24,18.75]
[1727098524443,18.75,143.33,143.2,1.4532]
[1727098524629,3.4897,143.3,143.27,3.4902]
[1727098524832,18.75,143.31,143.2,20.2032]
[1727098525036,1.3797,143.34,143.2,20.2032]
[1727098525037,18.75,143.33,143.2,20.2032]
[1727098525336,3.4893,143.32,143.2,20.2032]
[1727098525541,18.75,143.33,143.23,18.75]
[1727098525763,22.2391,143.33,143.23,18.75]
[1727098526041,22.30652401,143.33,143.2,1.4532]
[1727098526544,18.75,143.33,143.21,18.75]
[1727098527445,18.75,143.33,143.23,18.75]
[1727098527646,1.3797,143.34,143.23,18.75]
[1727098527946,3.489,143.33,143.23,18.75]
[1727098528141,18.75,143.33,143.23,18.75]
[1727098528645,3.4896,143.31,143.28,3.49]
[1727098529340,18.75,143.33,143.23,18.75]
[1727098529643,1.4436,143.37,143.23,18.75]